[Event "*** SCC Grand Prix: Titled Tuesday Blitz"]
[Site "Chess.com"]
[Date "2020.10.06"]
[Round "2"]
[White "topotun"]
[Black "GM_LOADING"]
[Result "1-0"]
[WhiteElo "2738"]
[BlackElo "2490"]
[TimeControl "180+1"]
[EndTime "10:18:28 PDT"]
[Termination "topotun won on time"]

1. e4 {[%clk 0:03:00.9]} 1... e5 {[%clk 0:02:59.9]} 2. Nf3 {[%clk 0:03:01.1]}
2... Nc6 {[%clk 0:02:59.4]} 3. Bb5 {[%clk 0:03:01.2]} 3... g6 {[%clk 0:02:58.9]}
4. O-O {[%clk 0:02:53.1]} 4... Bg7 {[%clk 0:02:57.1]} 5. c3 {[%clk 0:02:52.6]}
5... a6 {[%clk 0:02:56.7]} 6. Ba4 {[%clk 0:02:52.5]} 6... Nge7 {[%clk
0:02:55.3]} 7. d4 {[%clk 0:02:52.2]} 7... exd4 {[%clk 0:02:56.2]} 8. cxd4 {[%clk
0:02:53.1]} 8... O-O {[%clk 0:02:55.8]} 9. d5 {[%clk 0:02:53.3]} 9... Na5 {[%clk
0:02:55.7]} 10. Nbd2 {[%clk 0:02:51.6]} 10... d6 {[%clk 0:02:55.3]} 11. Rb1
{[%clk 0:02:47.5]} 11... b5 {[%clk 0:02:54.6]} 12. Bc2 {[%clk 0:02:47.5]} 12...
c5 {[%clk 0:02:51]} 13. b3 {[%clk 0:02:42.8]} 13... Bd7 {[%clk 0:02:29.1]} 14.
Bb2 {[%clk 0:02:40]} 14... Bxb2 {[%clk 0:02:27]} 15. Rxb2 {[%clk 0:02:40.9]}
15... Nc8 {[%clk 0:02:26.9]} 16. Re1 {[%clk 0:02:18.8]} 16... Re8 {[%clk
0:02:23.2]} 17. Nf1 {[%clk 0:02:12.1]} 17... Qf6 {[%clk 0:01:46.9]} 18. Rb1
{[%clk 0:02:11.9]} 18... Bg4 {[%clk 0:01:46.7]} 19. N1d2 {[%clk 0:02:11.5]}
19... Nb6 {[%clk 0:01:39.3]} 20. h3 {[%clk 0:02:09.9]} 20... Bxf3 {[%clk
0:01:28.4]} 21. Nxf3 {[%clk 0:02:10.8]} 21... Nd7 {[%clk 0:01:22.2]} 22. Qd2
{[%clk 0:02:08.7]} 22... Nb7 {[%clk 0:01:19.9]} 23. Nh2 {[%clk 0:01:46.6]} 23...
h5 {[%clk 0:01:14.6]} 24. f4 {[%clk 0:01:42.8]} 24... c4 {[%clk 0:01:02.4]} 25.
b4 {[%clk 0:01:21.6]} 25... Nb6 {[%clk 0:00:34.6]} 26. Nf3 {[%clk 0:01:19.5]}
26... Rac8 {[%clk 0:00:23.6]} 27. e5 {[%clk 0:01:13.5]} 27... dxe5 {[%clk
0:00:23.6]} 28. fxe5 {[%clk 0:01:14.4]} 28... Qg7 {[%clk 0:00:24]} 29. Qd4
{[%clk 0:00:56.4]} 29... Nd7 {[%clk 0:00:22.6]} 30. Qa7 {[%clk 0:00:49.8]} 30...
Rb8 {[%clk 0:00:16.6]} 31. e6 {[%clk 0:00:38.1]} 31... Nf6 {[%clk 0:00:09.1]}
32. Ne5 {[%clk 0:00:17.3]} 32... fxe6 {[%clk 0:00:06.6]} 33. Bxg6 {[%clk
0:00:17.4]} 33... exd5 {[%clk 0:00:02.5]} 34. Bxe8 {[%clk 0:00:16.8]} 34... Rxe8
{[%clk 0:00:03.4]} 35. Nf3 {[%clk 0:00:15]} 35... Nd6 {[%clk 0:00:03.2]} 36.
Rxe8+ {[%clk 0:00:11.7]} 36... Nfxe8 {[%clk 0:00:04.1]} 37. Qxa6 {[%clk
0:00:10.7]} 37... d4 {[%clk 0:00:04.4]} 38. Qc6 {[%clk 0:00:06.3]} 38... d3
{[%clk 0:00:04.6]} 39. Re1 {[%clk 0:00:05.9]} 39... Qf7 {[%clk 0:00:03.5]} 40.
Qc5 {[%clk 0:00:04.9]} 40... Kf8 {[%clk 0:00:02]} 41. Nd2 {[%clk 0:00:04.7]}
41... Qd7 {[%clk 0:00:01.9]} 42. Rf1+ {[%clk 0:00:05.2]} 42... Kg7 {[%clk
0:00:01.8]} 43. Qxh5 {[%clk 0:00:06.1]} 43... Qe7 {[%clk 0:00:01.4]} 44. Qg4+
{[%clk 0:00:06.1]} 44... Kh7 {[%clk 0:00:01.3]} 45. Nf3 {[%clk 0:00:06.4]} 45...
Qa7+ {[%clk 0:00:01.9]} 46. Kh1 {[%clk 0:00:06.8]} 46... d2 {[%clk 0:00:02.8]}
47. Ng5+ {[%clk 0:00:07.2]} 47... Kh6 {[%clk 0:00:02.5]} 48. Nf3 {[%clk
0:00:07.5]} 48... Ne4 {[%clk 0:00:01.7]} 49. Qf4+ {[%clk 0:00:07.1]} 49... Ng5
{[%clk 0:00:01.5]} 50. Qxg5+ {[%clk 0:00:07.4]} 1-0

[Event "*** SCC Grand Prix: Titled Tuesday Blitz"]
[Site "Chess.com"]
[Date "2020.10.06"]
[Round "2"]
[White "boasovietica"]
[Black "Fandorine"]
[Result "0-1"]
[WhiteElo "2468"]
[BlackElo "2879"]
[TimeControl "180+1"]
[EndTime "10:18:28 PDT"]
[Termination "Fandorine won on time"]

1. e4 {[%clk 0:03:00.9]} 1... c5 {[%clk 0:02:55.4]} 2. Nf3 {[%clk 0:03:00.5]}
2... d6 {[%clk 0:02:55.8]} 3. d4 {[%clk 0:03:00.1]} 3... cxd4 {[%clk 0:02:56.7]}
4. Nxd4 {[%clk 0:03:00.3]} 4... Nf6 {[%clk 0:02:57.3]} 5. Nc3 {[%clk 0:03:00.8]}
5... a6 {[%clk 0:02:57.6]} 6. Be3 {[%clk 0:03:00.7]} 6... Nbd7 {[%clk
0:02:55.8]} 7. Be2 {[%clk 0:02:58.1]} 7... e6 {[%clk 0:02:53.7]} 8. O-O {[%clk
0:02:57.8]} 8... Qc7 {[%clk 0:02:49]} 9. f4 {[%clk 0:02:53.6]} 9... b5 {[%clk
0:02:46.7]} 10. a3 {[%clk 0:02:40.6]} 10... Bb7 {[%clk 0:02:46.7]} 11. Bf3
{[%clk 0:02:26.9]} 11... Be7 {[%clk 0:02:45.9]} 12. Qe1 {[%clk 0:02:13.3]} 12...
O-O {[%clk 0:02:45.6]} 13. Qg3 {[%clk 0:02:10.1]} 13... Rac8 {[%clk 0:02:38.9]}
14. Kh1 {[%clk 0:02:08.9]} 14... Qb8 {[%clk 0:02:34.3]} 15. Rae1 {[%clk
0:02:04.8]} 15... Qa8 {[%clk 0:02:20.8]} 16. e5 {[%clk 0:01:48.6]} 16... dxe5
{[%clk 0:02:11.5]} 17. fxe5 {[%clk 0:01:49]} 17... Ne8 {[%clk 0:02:10.4]} 18.
Bg5 {[%clk 0:01:26]} 18... Bxg5 {[%clk 0:01:53.6]} 19. Qxg5 {[%clk 0:01:25.9]}
19... Rc4 {[%clk 0:01:51]} 20. Nde2 {[%clk 0:01:06.1]} 20... h6 {[%clk
0:01:26.3]} 21. Qe3 {[%clk 0:00:56]} 21... Nc7 {[%clk 0:01:13.1]} 22. Rd1 {[%clk
0:00:50.1]} 22... Bxf3 {[%clk 0:00:48.7]} 23. Rxf3 {[%clk 0:00:43.3]} 23... Nd5
{[%clk 0:00:48.8]} 24. Nxd5 {[%clk 0:00:42.8]} 24... exd5 {[%clk 0:00:49.7]} 25.
e6 {[%clk 0:00:31.9]} 25... Re4 {[%clk 0:00:45]} 26. exf7+ {[%clk 0:00:21.8]}
26... Rxf7 {[%clk 0:00:45.9]} 27. Qf2 {[%clk 0:00:18.9]} 27... Rxf3 {[%clk
0:00:43.5]} 28. Qxf3 {[%clk 0:00:19.8]} 28... Nf6 {[%clk 0:00:43.9]} 29. Ng3
{[%clk 0:00:18.5]} 29... Re5 {[%clk 0:00:42.9]} 30. c3 {[%clk 0:00:18.7]} 30...
Qe8 {[%clk 0:00:41.9]} 31. h3 {[%clk 0:00:18.5]} 31... Re3 {[%clk 0:00:33.6]}
32. Qf4 {[%clk 0:00:15.6]} 32... Qe6 {[%clk 0:00:28.6]} 33. Kh2 {[%clk
0:00:14.5]} 33... Kh7 {[%clk 0:00:25.6]} 34. Rd2 {[%clk 0:00:13.1]} 34... Re5
{[%clk 0:00:25.5]} 35. Qd4 {[%clk 0:00:12.3]} 35... Ne4 {[%clk 0:00:19.2]} 36.
Nxe4 {[%clk 0:00:11.1]} 36... dxe4 {[%clk 0:00:20.1]} 37. Re2 {[%clk 0:00:11.5]}
37... e3 {[%clk 0:00:20]} 38. Qf4 {[%clk 0:00:11.8]} 38... Re4 {[%clk
0:00:18.8]} 39. Qg3 {[%clk 0:00:11.5]} 39... h5 {[%clk 0:00:15.1]} 40. Qf3
{[%clk 0:00:10.9]} 40... h4 {[%clk 0:00:14.2]} 41. g3 {[%clk 0:00:10.9]} 41...
hxg3+ {[%clk 0:00:09.2]} 42. Qxg3 {[%clk 0:00:10.7]} 42... Re5 {[%clk
0:00:09.2]} 43. Qf4 {[%clk 0:00:09.7]} 43... Re4 {[%clk 0:00:06.7]} 44. Qg3
{[%clk 0:00:09.6]} 44... Qh6 {[%clk 0:00:04.4]} 45. Qf3 {[%clk 0:00:06.7]} 45...
Qd6+ {[%clk 0:00:04.5]} 46. Qg3 {[%clk 0:00:06.2]} 46... Qd3 {[%clk 0:00:03.7]}
47. Rg2 {[%clk 0:00:03.4]} 47... Re7 {[%clk 0:00:02.6]} 0-1

[Event "*** SCC Grand Prix: Titled Tuesday Blitz"]
[Site "Chess.com"]
[Date "2020.10.06"]
[Round "2"]
[White "ftorodent"]
[Black "ferch1ni"]
[Result "1-0"]
[WhiteElo "2675"]
[BlackElo "2374"]
[TimeControl "180+1"]
[EndTime "10:18:30 PDT"]
[Termination "ftorodent won on time"]

1. d4 {[%clk 0:03:00.9]} 1... f6 {[%clk 0:02:54.8]} 2. e4 {[%clk 0:02:58.3]}
2... c5 {[%clk 0:02:51.7]} 3. d5 {[%clk 0:02:56.9]} 3... e5 {[%clk 0:02:51.3]}
4. dxe6 {[%clk 0:02:52]} 4... dxe6 {[%clk 0:02:36.7]} 5. Qxd8+ {[%clk
0:02:51.6]} 5... Kxd8 {[%clk 0:02:37.6]} 6. Nc3 {[%clk 0:02:51.9]} 6... e5
{[%clk 0:02:36.8]} 7. Bc4 {[%clk 0:02:50.8]} 7... Ne7 {[%clk 0:02:33.8]} 8. Be3
{[%clk 0:02:50.4]} 8... a6 {[%clk 0:02:32.3]} 9. O-O-O+ {[%clk 0:02:47.1]} 9...
Kc7 {[%clk 0:02:31.9]} 10. Bxc5 {[%clk 0:02:46]} 10... b5 {[%clk 0:02:29.1]} 11.
Bb3 {[%clk 0:02:36.3]} 11... Bb7 {[%clk 0:02:10.9]} 12. Nf3 {[%clk 0:02:34.4]}
12... Nc8 {[%clk 0:02:10.5]} 13. Bxf8 {[%clk 0:02:21.9]} 13... Rxf8 {[%clk
0:02:11.4]} 14. a4 {[%clk 0:02:21.8]} 14... bxa4 {[%clk 0:01:41.1]} 15. Bxa4
{[%clk 0:02:13.4]} 15... Nb6 {[%clk 0:01:33.8]} 16. Nd2 {[%clk 0:02:09.6]} 16...
Nc6 {[%clk 0:01:26.6]} 17. Nb3 {[%clk 0:02:09]} 17... Rf7 {[%clk 0:00:19.8]} 18.
Bxc6 {[%clk 0:02:04.6]} 18... Bxc6 {[%clk 0:00:19.6]} 19. Nc5 {[%clk 0:02:04.7]}
19... a5 {[%clk 0:00:18.7]} 20. b3 {[%clk 0:01:58.4]} 20... a4 {[%clk
0:00:11.6]} 21. Ne6+ {[%clk 0:01:54]} 21... Kb7 {[%clk 0:00:10.9]} 22. Nd8+
{[%clk 0:01:53.3]} 22... Rxd8 {[%clk 0:00:10.3]} 23. Rxd8 {[%clk 0:01:53.1]}
23... Rc7 {[%clk 0:00:09.9]} 24. Kb2 {[%clk 0:01:52.5]} 24... axb3 {[%clk
0:00:09.1]} 25. cxb3 {[%clk 0:01:52.4]} 25... Bd7 {[%clk 0:00:09.1]} 26. Rd1
{[%clk 0:01:48.9]} 26... Bg4 {[%clk 0:00:09.3]} 27. f3 {[%clk 0:01:48.6]} 27...
Be6 {[%clk 0:00:09.9]} 28. R1d6 {[%clk 0:01:48.4]} 28... Re7 {[%clk 0:00:10.3]}
29. Nd5 {[%clk 0:01:38.9]} 29... Bxd5 {[%clk 0:00:10.1]} 30. exd5 {[%clk
0:01:39]} 30... Kc7 {[%clk 0:00:10.6]} 31. Kc3 {[%clk 0:01:20.9]} 31... Nc8
{[%clk 0:00:10.3]} 32. Rxc8+ {[%clk 0:01:20.7]} 32... Kxc8 {[%clk 0:00:10.4]}
33. Kc4 {[%clk 0:01:21]} 33... Ra7 {[%clk 0:00:09.3]} 34. Rc6+ {[%clk
0:01:16.3]} 34... Kd7 {[%clk 0:00:09.4]} 35. Rb6 {[%clk 0:01:16.2]} 35... Ra2
{[%clk 0:00:09.3]} 36. Rb7+ {[%clk 0:01:16.1]} 36... Kd6 {[%clk 0:00:09.8]} 37.
Rxg7 {[%clk 0:01:16.1]} 37... Rc2+ {[%clk 0:00:10.4]} 38. Kd3 {[%clk 0:01:14.5]}
38... Rc1 {[%clk 0:00:10]} 39. Rxh7 {[%clk 0:01:12.1]} 39... Kxd5 {[%clk
0:00:10.6]} 40. g4 {[%clk 0:01:06.8]} 40... Rb1 {[%clk 0:00:08.8]} 41. Kc3
{[%clk 0:01:03.8]} 41... Rf1 {[%clk 0:00:08.5]} 42. Rh3 {[%clk 0:01:03.7]} 42...
e4 {[%clk 0:00:03]} 43. Rh5+ {[%clk 0:01:02.8]} 43... Ke6 {[%clk 0:00:02.6]} 44.
fxe4 {[%clk 0:01:03.1]} 44... Rf4 {[%clk 0:00:02.6]} 45. h3 {[%clk 0:00:59.2]}
45... Rxe4 {[%clk 0:00:03.1]} 46. b4 {[%clk 0:00:59.6]} 46... Re1 {[%clk
0:00:02.7]} 47. Kc4 {[%clk 0:00:59]} 47... Rc1+ {[%clk 0:00:02.9]} 48. Kb5
{[%clk 0:00:58.9]} 48... Kd6 {[%clk 0:00:03.4]} 49. Rf5 {[%clk 0:00:57.9]} 49...
Ke6 {[%clk 0:00:03]} 50. Kb6 {[%clk 0:00:57.1]} 50... Rh1 {[%clk 0:00:02.5]} 51.
Rf3 {[%clk 0:00:55.4]} 51... Ke5 {[%clk 0:00:02.3]} 52. b5 {[%clk 0:00:54.6]}
52... Ke4 {[%clk 0:00:02.2]} 53. Rxf6 {[%clk 0:00:54.4]} 53... Rxh3 {[%clk
0:00:02.9]} 54. g5 {[%clk 0:00:53.2]} 54... Ke5 {[%clk 0:00:02.5]} 55. Rc6
{[%clk 0:00:52.3]} 55... Rg3 {[%clk 0:00:02.8]} 56. g6 {[%clk 0:00:52.4]} 56...
Kd5 {[%clk 0:00:03.5]} 57. Kb7 {[%clk 0:00:51.8]} 57... Rb3 {[%clk 0:00:02.6]}
58. b6 {[%clk 0:00:51.7]} 58... Rg3 {[%clk 0:00:02.5]} 59. Kc7 {[%clk
0:00:45.2]} 59... Rb3 {[%clk 0:00:01.3]} 60. b7 {[%clk 0:00:45]} 60... Rb4
{[%clk 0:00:01.5]} 61. Rb6 {[%clk 0:00:44.3]} 61... Rc4+ {[%clk 0:00:01.5]} 62.
Kd7 {[%clk 0:00:44.2]} 62... Rf4 {[%clk 0:00:01.3]} 63. b8=Q {[%clk 0:00:43.2]}
63... Rf7+ {[%clk 0:00:01.7]} 64. gxf7 {[%clk 0:00:42.7]} 1-0

[Event "*** SCC Grand Prix: Titled Tuesday Blitz"]
[Site "Chess.com"]
[Date "2020.10.06"]
[Round "2"]
[White "rugbyclub"]
[Black "AndrewMaco"]
[Result "0-1"]
[WhiteElo "2176"]
[BlackElo "2633"]
[TimeControl "180+1"]
[EndTime "10:18:33 PDT"]
[Termination "AndrewMaco won by resignation"]

1. e4 {[%clk 0:03:00.2]} 1... c6 {[%clk 0:02:59.3]} 2. d4 {[%clk 0:02:59.6]}
2... d5 {[%clk 0:03:00.2]} 3. e5 {[%clk 0:03:00.1]} 3... Bf5 {[%clk 0:02:54.8]}
4. h4 {[%clk 0:02:58.4]} 4... h5 {[%clk 0:02:53.8]} 5. Bd3 {[%clk 0:02:56.8]}
5... Bxd3 {[%clk 0:02:53.7]} 6. Qxd3 {[%clk 0:02:57.4]} 6... e6 {[%clk
0:02:54.6]} 7. Bg5 {[%clk 0:02:54.1]} 7... Be7 {[%clk 0:02:50.7]} 8. Nf3 {[%clk
0:02:48.1]} 8... Nh6 {[%clk 0:02:48.4]} 9. c4 {[%clk 0:02:42.2]} 9... Nf5 {[%clk
0:02:42.3]} 10. cxd5 {[%clk 0:02:41.6]} 10... cxd5 {[%clk 0:02:39.7]} 11. Nc3
{[%clk 0:02:36.4]} 11... Nc6 {[%clk 0:02:38.6]} 12. Bxe7 {[%clk 0:02:35.1]}
12... Qxe7 {[%clk 0:02:24.7]} 13. g3 {[%clk 0:02:29.8]} 13... Qd7 {[%clk
0:02:18.4]} 14. O-O-O {[%clk 0:02:17.6]} 14... O-O-O {[%clk 0:02:15.7]} 15. Kb1
{[%clk 0:02:17.5]} 15... Kb8 {[%clk 0:02:15.7]} 16. Rc1 {[%clk 0:02:17.1]} 16...
Rc8 {[%clk 0:02:16]} 17. Ne2 {[%clk 0:02:03.6]} 17... g6 {[%clk 0:01:59]} 18.
Qd2 {[%clk 0:01:59.3]} 18... Rc7 {[%clk 0:01:58]} 19. Rc2 {[%clk 0:01:55.1]}
19... Rhc8 {[%clk 0:01:54.3]} 20. Rhc1 {[%clk 0:01:54.6]} 20... b6 {[%clk
0:01:34.3]} 21. b3 {[%clk 0:01:48.1]} 21... Kb7 {[%clk 0:01:33.6]} 22. Kb2
{[%clk 0:01:40]} 22... Qe7 {[%clk 0:01:25.6]} 23. a3 {[%clk 0:01:36.8]} 23...
Qd7 {[%clk 0:01:08.9]} 24. Rc3 {[%clk 0:01:23.4]} 24... a6 {[%clk 0:01:05.8]}
25. Qc2 {[%clk 0:01:20.3]} 25... a5 {[%clk 0:00:55.2]} 26. Qd2 {[%clk 0:01:17]}
26... Na7 {[%clk 0:00:54.7]} 27. Rxc7+ {[%clk 0:01:10.1]} 27... Rxc7 {[%clk
0:00:55.6]} 28. Rxc7+ {[%clk 0:01:06.2]} 28... Qxc7 {[%clk 0:00:56.5]} 29. Qd3
{[%clk 0:01:03.8]} 29... Qd7 {[%clk 0:00:53]} 30. Ng5 {[%clk 0:00:58.5]} 30...
b5 {[%clk 0:00:42.4]} 31. Qc3 {[%clk 0:00:54.5]} 31... a4 {[%clk 0:00:36.4]} 32.
Qc5 {[%clk 0:00:41.3]} 32... axb3 {[%clk 0:00:34.1]} 33. Kxb3 {[%clk 0:00:40.7]}
33... Ka6 {[%clk 0:00:22.6]} 34. Nc3 {[%clk 0:00:35.4]} 34... Qb7 {[%clk
0:00:19.1]} 35. a4 {[%clk 0:00:19.5]} 35... bxa4+ {[%clk 0:00:17.3]} 36. Kxa4
{[%clk 0:00:20]} 36... Nc6 {[%clk 0:00:15.2]} 37. Nb5 {[%clk 0:00:13.4]} 37...
Qb6 {[%clk 0:00:07.4]} 38. Qxb6+ {[%clk 0:00:12.9]} 38... Kxb6 {[%clk
0:00:08.3]} 39. Nxf7 {[%clk 0:00:12.4]} 39... Ncxd4 {[%clk 0:00:08.4]} 40. Nxd4
{[%clk 0:00:12.6]} 40... Nxd4 {[%clk 0:00:09.3]} 41. Ng5 {[%clk 0:00:10.7]}
41... Kc5 {[%clk 0:00:09]} 42. Ka3 {[%clk 0:00:09.5]} 42... Kc4 {[%clk
0:00:09.4]} 43. Kb2 {[%clk 0:00:10.1]} 43... Kd3 {[%clk 0:00:09.8]} 44. Kc1
{[%clk 0:00:07.8]} 44... Ke2 {[%clk 0:00:10.1]} 45. f4 {[%clk 0:00:05.6]} 45...
Kf2 {[%clk 0:00:10.5]} 46. Kd2 {[%clk 0:00:04.6]} 46... Kxg3 {[%clk 0:00:10.7]}
47. Kd3 {[%clk 0:00:04.9]} 47... Nf5 {[%clk 0:00:10.1]} 48. Nxe6 {[%clk
0:00:05.1]} 48... Kxh4 {[%clk 0:00:09.3]} 49. Nf8 {[%clk 0:00:05.6]} 49... Kg4
{[%clk 0:00:09]} 50. Nxg6 {[%clk 0:00:06]} 50... h4 {[%clk 0:00:09.7]} 51. e6
{[%clk 0:00:06.6]} 51... h3 {[%clk 0:00:09.7]} 52. Ke2 {[%clk 0:00:07.1]} 52...
h2 {[%clk 0:00:09.8]} 53. e7 {[%clk 0:00:07.4]} 53... Nxe7 {[%clk 0:00:10]} 54.
Nxe7 {[%clk 0:00:07.9]} 54... h1=Q {[%clk 0:00:10.1]} 55. Nxd5 {[%clk
0:00:08.5]} 55... Qxd5 {[%clk 0:00:10.1]} 56. f5 {[%clk 0:00:08]} 56... Qxf5
{[%clk 0:00:10.2]} 0-1

[Event "*** SCC Grand Prix: Titled Tuesday Blitz"]
[Site "Chess.com"]
[Date "2020.10.06"]
[Round "2"]
[White "Roman_Ovetchkin"]
[Black "garicradomir"]
[Result "0-1"]
[WhiteElo "2612"]
[BlackElo "2345"]
[TimeControl "180+1"]
[EndTime "10:18:34 PDT"]
[Termination "garicradomir won on time"]

1. d4 {[%clk 0:02:58.3]} 1... Nf6 {[%clk 0:02:59.6]} 2. c4 {[%clk 0:02:58]} 2...
Nc6 {[%clk 0:02:59.9]} 3. Nf3 {[%clk 0:02:56.4]} 3... e6 {[%clk 0:03:00]} 4. a3
{[%clk 0:02:56.3]} 4... g6 {[%clk 0:03:00]} 5. Nc3 {[%clk 0:02:55.3]} 5... Bg7
{[%clk 0:02:59.6]} 6. e4 {[%clk 0:02:55.5]} 6... d6 {[%clk 0:02:58.9]} 7. Be3
{[%clk 0:02:47.8]} 7... O-O {[%clk 0:01:57.4]} 8. Be2 {[%clk 0:02:46.3]} 8...
Re8 {[%clk 0:01:47.6]} 9. d5 {[%clk 0:02:35.4]} 9... exd5 {[%clk 0:01:41.3]} 10.
cxd5 {[%clk 0:02:33.7]} 10... Ne7 {[%clk 0:01:39.2]} 11. Nd2 {[%clk 0:02:30.6]}
11... c6 {[%clk 0:01:39.1]} 12. dxc6 {[%clk 0:02:28.8]} 12... bxc6 {[%clk
0:01:32]} 13. O-O {[%clk 0:02:26.5]} 13... d5 {[%clk 0:01:32.2]} 14. Bd4 {[%clk
0:01:41.8]} 14... Be6 {[%clk 0:01:16]} 15. exd5 {[%clk 0:01:36.8]} 15... Nexd5
{[%clk 0:01:14.9]} 16. Nxd5 {[%clk 0:01:36.3]} 16... Bxd5 {[%clk 0:01:13.3]} 17.
Bf3 {[%clk 0:01:28.8]} 17... h5 {[%clk 0:00:57.2]} 18. Bxd5 {[%clk 0:01:14]}
18... Qxd5 {[%clk 0:00:56.4]} 19. Nf3 {[%clk 0:01:14]} 19... Rad8 {[%clk
0:00:55.1]} 20. Qc2 {[%clk 0:01:09.3]} 20... Re4 {[%clk 0:00:36.4]} 21. Rad1
{[%clk 0:01:01.5]} 21... Qf5 {[%clk 0:00:29]} 22. Bxa7 {[%clk 0:00:42.1]} 22...
Rxd1 {[%clk 0:00:25.9]} 23. Rxd1 {[%clk 0:00:37.6]} 23... h4 {[%clk 0:00:25]}
24. h3 {[%clk 0:00:34.7]} 24... Nd5 {[%clk 0:00:25]} 25. Re1 {[%clk 0:00:25.3]}
25... Rxe1+ {[%clk 0:00:21.1]} 26. Nxe1 {[%clk 0:00:25.1]} 26... Qe6 {[%clk
0:00:18.8]} 27. Nd3 {[%clk 0:00:23]} 27... Qe4 {[%clk 0:00:12.2]} 28. Qd1 {[%clk
0:00:21.4]} 28... Qc4 {[%clk 0:00:05.3]} 29. Be3 {[%clk 0:00:18]} 29... Nxe3
{[%clk 0:00:05.1]} 30. fxe3 {[%clk 0:00:17.9]} 30... Bh6 {[%clk 0:00:05.8]} 31.
Kf2 {[%clk 0:00:17.6]} 31... Qe4 {[%clk 0:00:04.8]} 32. Qd2 {[%clk 0:00:15.8]}
32... c5 {[%clk 0:00:04.7]} 33. b3 {[%clk 0:00:13.1]} 33... c4 {[%clk
0:00:03.6]} 34. bxc4 {[%clk 0:00:12.7]} 34... Qxc4 {[%clk 0:00:04.5]} 35. Ne1
{[%clk 0:00:12.8]} 35... Qa4 {[%clk 0:00:04.6]} 36. Qd3 {[%clk 0:00:12]} 36...
Bf8 {[%clk 0:00:04.9]} 37. Nf3 {[%clk 0:00:11.6]} 37... Bxa3 {[%clk 0:00:04.5]}
38. Qd4 {[%clk 0:00:10.6]} 38... Qxd4 {[%clk 0:00:02.3]} 39. exd4 {[%clk
0:00:10.7]} 39... Be7 {[%clk 0:00:03.1]} 40. Ke3 {[%clk 0:00:10.6]} 40... Kg7
{[%clk 0:00:03.5]} 41. Ke4 {[%clk 0:00:10.8]} 41... Kf6 {[%clk 0:00:03.9]} 42.
Kd5 {[%clk 0:00:11.2]} 42... Kf5 {[%clk 0:00:03.4]} 43. Kc6 {[%clk 0:00:09.8]}
43... Kf4 {[%clk 0:00:03.8]} 44. Ne5 {[%clk 0:00:10]} 44... Kg3 {[%clk
0:00:03.2]} 45. Nxf7 {[%clk 0:00:07.2]} 45... Kxg2 {[%clk 0:00:03.5]} 46. Kd7
{[%clk 0:00:05.5]} 46... Bf6 {[%clk 0:00:02.2]} 47. d5 {[%clk 0:00:03.8]} 47...
Kxh3 {[%clk 0:00:02.5]} 48. Ke6 {[%clk 0:00:04.4]} 48... Bd4 {[%clk 0:00:01.9]}
49. d6 {[%clk 0:00:04.6]} 49... Kg4 {[%clk 0:00:01.6]} 50. Kd5 {[%clk
0:00:01.1]} 50... Bb6 {[%clk 0:00:01.8]} 0-1

[Event "*** SCC Grand Prix: Titled Tuesday Blitz"]
[Site "Chess.com"]
[Date "2020.10.06"]
[Round "2"]
[White "CrazyMartian"]
[Black "Zufi1811"]
[Result "0-1"]
[WhiteElo "2283"]
[BlackElo "2474"]
[TimeControl "180+1"]
[EndTime "10:18:37 PDT"]
[Termination "Zufi1811 won by resignation"]

1. d4 {[%clk 0:03:00.9]} 1... Nf6 {[%clk 0:02:56.8]} 2. c4 {[%clk 0:03:00.7]}
2... g6 {[%clk 0:02:57.4]} 3. Nc3 {[%clk 0:02:59.8]} 3... Bg7 {[%clk 0:02:58.1]}
4. e4 {[%clk 0:03:00.4]} 4... d6 {[%clk 0:02:58.2]} 5. Nf3 {[%clk 0:02:54.2]}
5... O-O {[%clk 0:02:58.4]} 6. Be2 {[%clk 0:02:54.3]} 6... e5 {[%clk 0:02:58.3]}
7. O-O {[%clk 0:02:50.4]} 7... Nbd7 {[%clk 0:02:58]} 8. Qc2 {[%clk 0:02:49.6]}
8... Re8 {[%clk 0:02:53.6]} 9. d5 {[%clk 0:02:48.6]} 9... a5 {[%clk 0:02:53.1]}
10. a3 {[%clk 0:02:33.7]} 10... Nc5 {[%clk 0:02:48.9]} 11. b3 {[%clk 0:02:31.6]}
11... Nh5 {[%clk 0:02:28.3]} 12. Re1 {[%clk 0:02:18.3]} 12... Bd7 {[%clk
0:02:23.9]} 13. Bf1 {[%clk 0:02:02.2]} 13... f5 {[%clk 0:02:04.1]} 14. Bg5
{[%clk 0:01:18.8]} 14... Bf6 {[%clk 0:02:04.1]} 15. Bxf6 {[%clk 0:01:12.5]}
15... Qxf6 {[%clk 0:02:05]} 16. b4 {[%clk 0:01:11]} 16... Nxe4 {[%clk
0:01:58.6]} 17. Nxe4 {[%clk 0:01:10.4]} 17... fxe4 {[%clk 0:01:59.5]} 18. Qxe4
{[%clk 0:00:37.3]} 18... Bf5 {[%clk 0:01:33.3]} 19. Qh4 {[%clk 0:00:35.7]} 19...
Qxh4 {[%clk 0:01:07.1]} 20. Nxh4 {[%clk 0:00:35.3]} 20... Bd7 {[%clk 0:01:07]}
21. g3 {[%clk 0:00:25.8]} 21... Ng7 {[%clk 0:01:03.5]} 22. Bd3 {[%clk
0:00:16.5]} 22... e4 {[%clk 0:00:58.8]} 23. Bc2 {[%clk 0:00:13.9]} 23... g5
{[%clk 0:00:46.8]} 24. Ng2 {[%clk 0:00:13.2]} 24... Nf5 {[%clk 0:00:47.3]} 25.
b5 {[%clk 0:00:12.4]} 25... Nd4 {[%clk 0:00:42.5]} 26. Bxe4 {[%clk 0:00:11.8]}
26... Bg4 {[%clk 0:00:34]} 27. Re3 {[%clk 0:00:10.1]} 27... Re7 {[%clk
0:00:25.5]} 28. Rae1 {[%clk 0:00:10.1]} 28... Kg7 {[%clk 0:00:20.4]} 29. f3
{[%clk 0:00:08.6]} 29... Bd7 {[%clk 0:00:19.4]} 30. Bd3 {[%clk 0:00:08.5]} 30...
Rxe3 {[%clk 0:00:18.2]} 31. Rxe3 {[%clk 0:00:09.4]} 31... Kf6 {[%clk 0:00:18.7]}
32. Kf2 {[%clk 0:00:08.8]} 32... h6 {[%clk 0:00:16.6]} 33. Ne1 {[%clk
0:00:08.5]} 33... a4 {[%clk 0:00:16.3]} 34. Nc2 {[%clk 0:00:08.6]} 34... Nb3
{[%clk 0:00:16.8]} 35. Nb4 {[%clk 0:00:06.9]} 35... Nc5 {[%clk 0:00:17.1]} 36.
Bc2 {[%clk 0:00:06.6]} 36... Rf8 {[%clk 0:00:16.9]} 37. Nd3 {[%clk 0:00:05.5]}
37... Nxd3+ {[%clk 0:00:14.9]} 38. Bxd3 {[%clk 0:00:04.3]} 38... c6 {[%clk
0:00:12.1]} 39. b6 {[%clk 0:00:03.7]} 39... c5 {[%clk 0:00:10.6]} 40. Bc2 {[%clk
0:00:03.6]} 40... Ra8 {[%clk 0:00:10.5]} 41. Ke2 {[%clk 0:00:03.8]} 41... Ra6
{[%clk 0:00:10.8]} 42. f4 {[%clk 0:00:04.2]} 42... Rxb6 {[%clk 0:00:10.9]} 43.
fxg5+ {[%clk 0:00:04]} 43... hxg5 {[%clk 0:00:11.8]} 44. Rf3+ {[%clk 0:00:04.4]}
44... Kg7 {[%clk 0:00:09.6]} 45. Kd2 {[%clk 0:00:05.3]} 45... Rb2 {[%clk
0:00:08.8]} 46. Re3 {[%clk 0:00:06.2]} 46... Kf6 {[%clk 0:00:07]} 47. Rf3+
{[%clk 0:00:05.5]} 47... Ke7 {[%clk 0:00:07.5]} 48. Kc3 {[%clk 0:00:06.4]} 48...
Ra2 {[%clk 0:00:07]} 49. Re3+ {[%clk 0:00:07.3]} 49... Kd8 {[%clk 0:00:06.5]}
50. Rf3 {[%clk 0:00:07.6]} 50... Rxa3+ {[%clk 0:00:06.6]} 51. Kd2 {[%clk
0:00:06.5]} 51... Rxf3 {[%clk 0:00:06.9]} 0-1